bitfinex/quotes_SOLUSD_20241118
["timestamp","ask_amount","ask_price","bid_price","bid_amount"]
[1731945749314,1.0,242.37,242.32,20.0]
[1731945749526,0.5,242.37,242.32,20.0]
[1731945750019,0.5,242.41,242.34,20.0]
[1731945750226,0.5,242.41,242.34,24.1264]
[1731945750227,38.37264607,242.41,242.34,24.1264]
[1731945750619,0.5,242.55,242.34,24.1264]
[1731945750620,38.37264607,242.43,242.36,20.0]
[1731945751116,38.37264607,242.45,242.38,20.0]
[1731945751315,0.5,242.41,242.38,20.0]
[1731945751617,38.37264607,242.41,242.34,4.1264]
[1731945751825,0.5,242.41,242.35,20.0]
[1731945752016,38.37264607,242.41,242.35,20.0]
[1731945752226,0.5,242.34,242.24,37.87264607]
[1731945752433,37.87264607,242.37,242.3,37.87264607]
[1731945752434,0.5,242.37,242.3,37.87264607]
[1731945752727,1.0,242.34,242.28,37.87264607]
[1731945753032,1.0,242.31,242.26,4.1277]
[1731945753827,1.0,242.29,242.26,4.1277]
[1731945754552,0.5,242.29,242.26,4.1277]
[1731945754723,1.0,242.29,242.26,4.1277]
[1731945755042,0.5,242.37,242.27,37.87264607]
[1731945755216,0.5,242.37,242.26,4.1277]
[1731945755217,1.0,242.42,242.35,37.87264607]
[1731945755419,1.0,242.42,242.28,57.87264607]
[1731945755420,0.5,242.4,242.38,20.0]
[1731945755835,0.5,242.41,242.38,20.0]
[1731945756027,38.37264607,242.43,242.36,20.0]
[1731945756219,0.5,242.41,242.37,4.1259]
[1731945756433,37.87264607,242.39,242.37,4.1259]
[1731945756740,1.0,242.38,242.37,4.1259]
[1731945758032,0.5,242.38,242.28,20.0]
[1731945758226,0.5,242.38,242.33,20.0]
[1731945758428,1.0,242.4,242.35,20.0]
[1731945758633,38.37264607,242.4,242.35,20.0]
[1731945758832,0.5,242.39,242.35,20.0]
[1731945759142,37.87264607,242.38,242.3,20.0]
[1731945759447,0.5,242.36,242.31,20.0]
[1731945759632,37.87264607,242.38,242.31,20.0]
[1731945760140,37.87264607,242.38,242.32,4.1267]
[1731945760345,38.37264607,242.38,242.32,4.1267]
[1731945761229,0.5,242.33,242.32,4.1267]
[1731945762346,0.5,242.33,242.29,37.87264607]
[1731945762729,0.5,242.31,242.28,20.0]
[1731945762930,0.5,242.35,242.3,20.0]
[1731945763129,1.0,242.35,242.3,20.0]
[1731945763330,0.5,242.35,242.3,20.0]
[1731945763541,0.5,242.31,242.26,4.1277]
[1731945763751,0.5,242.48,242.26,4.1277]
[1731945763752,0.5,242.33,242.26,24.1277]
[1731945763927,0.5,242.33,242.28,20.0]
[1731945764473,0.5,242.33,242.29,4.1272]
[1731945764639,0.5,242.35,242.29,41.99984607]
[1731945764838,0.5,242.37,242.34,20.0]
[1731945765049,1.0,242.34,242.3,20.0]
[1731945765345,37.87264607,242.38,242.3,20.0]
[1731945765346,0.5,242.31,242.3,20.0]
[1731945765729,0.5,242.31,242.29,4.1272]
[1731945765929,0.5,242.3,242.29,4.1272]
[1731945766431,0.5,242.3,242.28,20.0]
[1731945766930,0.5,242.3,242.29,37.87264607]
[1731945767131,0.5,242.3,242.29,57.87264607]
[1731945767542,0.5,242.3,242.29,61.99984607]
[1731945767929,1.0,242.37,242.3,20.0]
[1731945768136,0.5,242.34,242.31,37.87264607]
[1731945768352,0.5,242.33,242.32,20.0]
[1731945768630,0.5,242.34,242.32,20.0]
[1731945768631,0.5,242.36,242.32,20.0]
[1731945768826,0.5,242.33,242.32,20.0]
[1731945769347,1.0,242.3,242.29,4.1272]
[1731945770645,1.0,242.26,242.25,4.9839]
[1731945771243,1.09367462,242.26,242.25,0.856]
[1731945772252,25.62153862,242.26,242.25,0.856]
[1731945772461,1.09367462,242.26,242.25,0.856]
[1731945772633,0.5,242.29,242.25,0.856]
[1731945772940,37.87264607,242.26,242.25,0.856]
[1731945773137,62.40051007,242.26,242.25,0.856]
[1731945773339,37.87264607,242.26,242.25,0.856]
[1731945775251,37.87264607,242.28,242.25,0.856]
[1731945775452,0.07283921,242.27,242.25,4.9838]
[1731945776052,0.07283921,242.27,242.25,0.856]
[1731945776232,0.07283921,242.27,242.25,4.9838]
[1731945776651,37.94548528,242.27,242.25,4.9838]
[1731945776834,37.94548528,242.27,242.25,0.856]
[1731945777236,0.07283921,242.27,242.25,0.856]
[1731945779041,0.07283921,242.27,242.26,4.1277]
[1731945780259,37.94548528,242.27,242.26,4.1277]
[1731945780463,37.87264607,242.31,242.26,4.1277]
[1731945780761,37.87264607,242.4,242.26,4.1277]
[1731945780762,37.87264607,242.29,242.26,4.1277]
[1731945781258,37.87264607,242.35,242.27,37.87264607]
[1731945781459,37.87264607,242.35,242.28,20.0]
[1731945781768,37.87264607,242.31,242.28,20.0]
[1731945781979,0.09367462,242.28,242.25,0.856]
[1731945782135,0.09367462,242.26,242.25,0.856]
[1731945782541,0.59367462,242.26,242.25,0.856]
[1731945782836,0.09367462,242.26,242.25,0.856]
[1731945783050,4.47235462,242.26,242.25,0.856]
[1731945783268,28.74923862,242.26,242.25,0.856]
[1731945783455,23.776884,242.25,242.07,37.87264607]
[1731945783749,37.87264607,242.15,242.08,4.1308]
[1731945784776,37.87264607,242.13,242.08,4.1308]
[1731945785065,37.87264607,242.13,242.05,1.005]
[1731945785066,0.21916462,242.08,242.05,1.005]
[1731945785266,37.87264607,242.16,242.05,1.005]
[1731945785267,37.87264607,242.06,242.05,1.005]
[1731945785463,37.87264607,242.08,242.06,4.1312]
[1731945785671,37.87264607,242.08,242.05,1.005]
[1731945785672,37.87264607,242.08,242.05,5.1362]
[1731945785848,37.87264607,242.06,242.05,5.1363]
[1731945786048,37.87264607,242.06,242.05,1.005]
[1731945786249,0.12549,242.15,242.05,5.1363]
[1731945786250,37.87264607,242.08,242.05,5.1363]
[1731945786850,37.87264607,242.06,242.05,1.005]
[1731945787375,37.96632069,242.06,242.05,1.005]
[1731945787547,37.87264607,242.06,242.05,1.005]
[1731945788156,37.87264607,242.08,242.05,1.005]
[1731945788360,37.87264607,242.1,242.05,1.005]
[1731945788772,37.87264607,242.12,242.05,1.005]
[1731945789159,0.5,242.22,242.06,4.1312]
[1731945789160,37.87264607,242.08,242.06,4.1312]
[1731945789370,37.87264607,242.1,242.06,24.1312]
[1731945789560,37.87264607,242.14,242.06,24.1312]
[1731945789766,37.87264607,242.1,242.06,24.1312]
[1731945790155,37.87264607,242.12,242.06,24.1312]
[1731945790347,37.87264607,242.08,242.06,4.1312]
[1731945792471,37.87264607,242.1,242.06,24.1312]
[1731945792767,0.5,242.24,242.06,24.1312]
[1731945792768,37.87264607,242.12,242.06,24.1312]
[1731945792965,37.87264607,242.1,242.06,24.1312]
[1731945793168,37.87264607,242.08,242.06,24.1312]
[1731945793361,37.87264607,242.08,242.05,1.005]
[1731945793572,0.09367462,242.07,242.05,1.005]
[1731945793753,37.96632069,242.06,242.05,1.005]
[1731945794363,37.87264607,242.06,242.05,1.005]
[1731945794570,37.87264607,242.08,242.06,4.1312]
[1731945794763,37.96632069,242.06,242.05,1.005]
[1731945795258,37.87264607,242.06,242.05,1.005]
[1731945798394,38.21730069,242.06,242.05,1.005]
[1731945798692,100.36683076,242.06,242.05,1.005]
[1731945798863,38.21730069,242.06,242.05,1.005]
[1731945799457,38.21730069,242.06,241.73,36.12458005]
[1731945799458,0.5,242.01,241.73,36.12458005]
[1731945799661,37.87264607,241.84,241.8,4.1356]
[1731945799894,37.87264607,241.88,241.8,4.1356]
[1731945800183,37.87264607,241.9,241.8,42.00824607]
[1731945800384,0.5,241.99,241.8,42.00824607]
[1731945800584,37.87264607,241.9,241.8,42.00824607]
[1731945800787,37.87264607,241.92,241.82,37.87264607]
[1731945801076,37.87264607,241.9,241.8,42.00824607]
[1731945801289,37.87264607,241.86,241.8,4.1356]
[1731945801871,0.09367462,241.98,241.8,4.1356]
[1731945801872,37.87264607,241.88,241.8,4.1356]
[1731945802076,37.87264607,241.9,241.82,37.87264607]
[1731945802264,37.87264607,241.92,241.82,37.87264607]
[1731945802462,37.87264607,241.9,241.8,42.00824607]
[1731945802785,37.87264607,241.88,241.8,4.1356]
[1731945802990,37.87264607,241.86,241.8,4.1356]
[1731945803372,37.87264607,241.86,241.78,37.87264607]
[1731945803768,37.87264607,241.86,241.76,37.87264607]
[1731945804288,37.87264607,241.86,241.78,37.87264607]
[1731945804461,37.87264607,241.84,241.76,37.87264607]
[1731945805582,37.87264607,241.88,241.78,37.87264607]
[1731945805885,37.87264607,241.86,241.77,24.1361]
[1731945806383,37.87264607,241.84,241.77,24.1361]
[1731945806685,37.87264607,241.86,241.77,24.1361]
[1731945807003,37.87264607,241.86,241.78,42.00854607]
[1731945807170,37.87264607,241.9,241.8,37.87264607]
[1731945807369,37.87264607,241.9,241.82,37.87264607]
[1731945807576,50.9064,242.06,241.82,37.87264607]
[1731945807577,37.87264607,241.92,241.82,37.87264607]
[1731945807773,37.87264607,241.94,241.84,37.87264607]
[1731945808259,37.87264607,241.92,241.81,20.0]
[1731945808461,37.87264607,241.92,241.83,20.0]
[1731945808690,0.5,242.02,241.85,20.0]
[1731945808691,37.87264607,241.94,241.85,20.0]
[1731945808879,37.87264607,241.94,241.87,20.0]
[1731945809088,37.87264607,241.96,241.87,20.0]
[1731945810083,37.87264607,241.96,241.88,4.1342]
[1731945810587,13.2702,242.05,241.88,4.1342]
[1731945810588,37.87264607,242.0,241.9,37.87264607]
[1731945810760,37.87264607,241.98,241.9,37.87264607]
[1731945810960,37.87264607,241.98,241.88,42.00684607]
[1731945811165,37.87264607,241.96,241.88,4.1342]
[1731945811687,37.87264607,241.96,241.88,42.00684607]
[1731945812002,37.87264607,241.98,241.88,42.00684607]
[1731945812203,37.87264607,241.98,241.9,37.87264607]
[1731945812487,37.87264607,241.98,241.88,42.00684607]
[1731945813070,37.87264607,241.96,241.88,4.1342]
[1731945813269,37.87264607,241.94,241.88,4.1342]
[1731945814174,37.87264607,241.92,241.88,4.1342]
[1731945814594,23.61552651,241.96,241.88,4.1342]
[1731945814897,23.61552651,241.96,241.88,24.1342]
[1731945815300,23.61552651,241.96,241.88,4.1342]
[1731945815477,0.09367462,241.99,241.88,4.1342]
[1731945815478,23.61552651,241.92,241.88,4.1342]
[1731945815676,23.61552651,241.9,241.88,4.1342]
[1731945815900,23.61552651,241.94,241.88,4.1342]
[1731945816401,23.61552651,241.91,241.8,27.75112651]
[1731945816581,23.61552651,241.93,241.82,23.61552651]
[1731945816780,23.61552651,241.93,241.84,23.61552651]
[1731945816984,23.61552651,241.95,241.86,23.61552651]
[1731945817186,23.61552651,241.95,241.88,4.1342]
[1731945817388,23.61552651,241.93,241.88,4.1342]
[1731945818503,23.61552651,241.97,241.88,23.61552651]
[1731945818674,23.61552651,241.95,241.87,20.0]
[1731945818882,23.61552651,241.93,241.87,20.0]
[1731945819083,23.61552651,241.9,241.87,20.0]
[1731945819299,23.61552651,241.9,241.75,0.5]
[1731945819300,0.21916462,241.82,241.64,4.1383]
[1731945819600,23.61552651,241.67,241.64,4.1383]
[1731945819774,0.09367462,241.77,241.64,4.1383]
[1731945819979,23.61552651,241.66,241.64,4.1383]
[1731945820382,23.61552651,241.66,241.62,4.1387]
[1731945820588,0.09367462,241.77,241.57,32.74547511]
[1731945820589,23.61552651,241.64,241.6,4.1389]
[1731945820777,23.61552651,241.64,241.58,4.1394]
[1731945821306,23.61552651,241.63,241.58,4.1394]
[1731945821677,8.61552651,241.63,241.58,4.1394]
[1731945822304,38.47083925,241.65,241.58,4.1394]
[1731945822485,38.47083925,241.67,241.59,20.0]
[1731945822884,38.47083925,241.65,241.59,20.0]
[1731945823205,38.47083925,241.65,241.58,4.6394]
[1731945823905,38.47083925,241.65,241.58,24.1394]
[1731945824111,38.47083925,241.69,241.61,24.1389]
[1731945824404,38.47083925,241.65,241.61,24.1389]
[1731945824613,38.47083925,241.62,241.29,13.2684]
[1731945824902,38.47083925,241.49,241.39,38.47083925]
[1731945825103,38.47083925,241.45,241.32,0.5]
[1731945825303,0.25098,241.58,241.33,38.47083925]
[1731945825609,38.47083925,241.49,241.38,38.47083925]
[1731945826101,38.47083925,241.51,241.42,38.47083925]
[1731945826411,38.47083925,241.53,241.44,38.47083925]
[1731945827105,38.47083925,241.53,241.43,23.776884]
[1731945827287,38.47083925,241.48,241.41,4.1423]
[1731945828387,38.47083925,241.48,241.39,0.5]
[1731945828587,38.47083925,241.48,241.4,20.12549]
[1731945828786,38.47083925,241.46,241.4,20.0]
[1731945829601,38.47083925,241.46,241.39,23.776884]
[1731945829602,38.47083925,241.53,241.44,20.0]
[1731945830404,38.47083925,241.51,241.44,20.0]
[1731945830613,38.47083925,241.51,241.44,4.1416]
[1731945831606,38.47083925,241.47,241.36,38.47083925]
[1731945831907,38.47083925,241.47,241.32,0.5]
[1731945831908,38.47083925,241.47,241.38,38.47083925]
[1731945832082,38.47083925,241.49,241.4,38.47083925]
[1731945832283,38.47083925,241.47,241.38,38.47083925]
[1731945832709,38.47083925,241.49,241.4,38.47083925]
[1731945833319,38.47083925,241.49,241.41,20.0]
[1731945833608,0.5,241.59,241.42,42.61293925]
[1731945833609,38.47083925,241.51,241.42,42.61293925]
[1731945833786,38.47083925,241.51,241.43,20.0]
[1731945833983,38.47083925,241.49,241.42,4.1421]
[1731945835213,38.47083925,241.52,241.44,38.47083925]
[1731945835599,38.47083925,241.52,241.45,20.0]
[1731945835807,38.47083925,241.59,241.5,38.47083925]
[1731945836489,38.47083925,241.59,241.52,38.47083925]
[1731945837499,38.47083925,241.57,241.48,38.47083925]
[1731945837699,38.47083925,241.61,241.52,38.47083925]
[1731945837906,38.47083925,241.59,241.49,38.47083925]
[1731945838117,38.47083925,241.57,241.49,38.47083925]
[1731945838418,4.1397,241.56,241.47,38.47083925]
[1731945839912,4.1397,241.56,241.49,38.47083925]
[1731945840496,38.47083925,241.55,241.47,38.47083925]
[1731945840694,4.1397,241.56,241.47,38.47083925]
[1731945841203,38.56451387,241.55,241.45,38.47083925]
[1731945841401,4.6397,241.56,241.49,38.47083925]
[1731945841792,4.1397,241.56,241.49,38.47083925]
[1731945842396,4.23307462,241.58,241.49,38.47083925]
[1731945842612,4.23307462,241.58,241.51,38.47083925]
[1731945842910,4.1394,241.58,241.51,38.47083925]
[1731945843626,0.12549,241.57,241.49,38.47083925]
[1731945843800,0.09367462,241.56,241.49,38.47083925]
[1731945843999,0.09367462,241.54,241.45,38.47083925]
[1731945844203,23.79744059,241.54,241.44,23.70376597]
[1731945844518,23.79744059,241.54,241.38,4.1428]
[1731945844519,0.09367462,241.49,241.4,23.70376597]
[1731945844709,0.09367462,241.49,241.38,4.1428]
[1731945844710,0.09367462,241.47,241.38,23.70376597]
[1731945845011,0.09367462,241.47,241.28,32.3743]
[1731945845325,0.09367462,241.43,241.36,23.70376597]
[1731945845621,0.09367462,241.43,241.34,23.70376597]
[1731945846113,0.21916462,241.43,241.34,23.70376597]
[1731945846496,0.21916462,241.43,241.36,23.70376597]
[1731945846497,4.1421,241.42,241.36,23.70376597]
[1731945846816,4.1421,241.42,241.22,1.0]
[1731945846817,0.5,241.25,241.05,12.9241]
[1731945846999,23.70376597,241.19,241.09,23.70376597]
[1731945847205,23.70376597,241.16,241.06,23.70376597]
[1731945847392,23.70376597,241.16,241.06,23.20376597]
[1731945847712,23.70376597,241.16,241.05,12.9241]
[1731945847713,23.70376597,241.16,241.08,23.70376597]
[1731945847924,23.70376597,241.16,241.09,4.1478]
[1731945848293,38.63423664,241.16,241.09,4.1478]
[1731945848520,38.72791126,241.18,241.09,42.78203664]
[1731945848716,38.63423664,241.2,241.11,38.63423664]
[1731945848928,38.63423664,241.18,241.09,53.15153664]
[1731945849096,38.63423664,241.16,241.09,14.5173]
[1731945849597,38.63423664,241.2,241.11,38.63423664]
[1731945849811,38.63423664,241.2,241.11,42.78163664]
[1731945850124,38.63423664,241.31,241.18,38.63423664]
[1731945850422,38.63423664,241.42,241.29,38.63423664]
[1731945850593,38.63423664,241.46,241.38,38.63423664]
[1731945850793,43.7889,241.51,241.3,20.0]
[1731945850994,1.0,241.49,241.27,20.0]
[1731945851199,0.5,241.45,241.27,20.0]
[1731945851400,0.5,241.47,241.27,20.0]
[1731945851629,48.4295,241.51,241.27,20.0]
[1731945851925,38.63423664,241.49,241.41,38.63423664]
[1731945852221,38.63423664,241.43,241.33,38.63423664]
[1731945852527,38.63423664,241.39,241.31,38.63423664]
[1731945852822,38.63423664,241.37,241.29,38.63423664]
[1731945853228,38.63423664,241.33,241.22,4.1455]
[1731945853399,38.63423664,241.31,241.23,38.63423664]
[1731945853821,38.63423664,241.31,241.21,38.63423664]
[1731945854102,38.63423664,241.31,241.22,4.1455]
[1731945854399,38.63423664,241.39,241.3,38.63423664]
[1731945854601,38.63423664,241.37,241.28,38.63423664]
[1731945855026,38.63423664,241.39,241.3,38.63423664]
[1731945855224,38.63423664,241.37,241.3,38.63423664]
[1731945856639,38.63423664,241.37,241.26,38.63423664]
[1731945856640,38.63423664,241.34,241.26,38.63423664]
[1731945857018,38.63423664,241.36,241.28,38.63423664]
[1731945857225,38.63423664,241.38,241.28,38.63423664]
[1731945858036,38.63423664,241.38,241.29,38.63423664]
[1731945858216,0.09367462,241.35,241.27,38.63423664]
[1731945858408,38.63423664,241.34,241.25,38.63423664]
[1731945858612,38.63423664,241.34,241.22,20.0]
[1731945858822,38.63423664,241.3,241.22,58.63423664]
[1731945859016,38.63423664,241.32,241.22,58.63423664]
[1731945859218,38.63423664,241.36,241.27,38.63423664]
[1731945859409,4.1422,241.42,241.22,20.0]
[1731945859410,38.63423664,241.32,241.23,38.63423664]
[1731945859609,38.63423664,241.32,241.26,20.0]
[1731945860038,38.63423664,241.3,241.23,4.1453]
[1731945860416,38.63423664,241.3,241.22,20.0]
[1731945860611,38.63423664,241.3,241.22,24.1454]
[1731945861337,38.63423664,241.26,241.21,10.3641]
[1731945861910,38.63423664,241.22,241.12,38.63423664]
[1731945862323,38.63423664,241.22,241.14,38.63423664]
[1731945863024,38.63423664,241.22,241.15,4.1467]
[1731945863338,38.63423664,241.22,241.15,34.5136]
[1731945863520,38.63423664,241.22,241.15,10.3669]
[1731945863725,38.63423664,241.2,241.15,10.3669]
[1731945864124,38.63423664,241.2,241.15,14.5136]
[1731945864641,38.63423664,241.2,241.15,10.3669]
[1731945865244,38.63423664,241.18,241.1,4.1475]
[1731945865419,38.63423664,241.16,241.08,4.1478]
[1731945865734,38.63423664,241.16,241.0,30.5769]
[1731945865735,23.902374,241.08,240.85,0.5]
[1731945865942,38.63423664,241.07,240.95,0.5]
[1731945866254,38.63423664,241.07,240.98,4.1496]
[1731945866738,38.63423664,241.07,241.0,4.1493]
[1731945866955,38.63423664,241.09,241.0,4.1493]
[1731945867125,0.09367462,241.13,241.0,4.1493]
[1731945867126,38.63423664,241.07,241.0,4.1493]
[1731945867527,38.63423664,241.07,240.98,20.0]
[1731945868144,38.72791126,241.07,240.97,10.3745]
[1731945868336,38.63423664,241.07,240.96,4.1499]
[1731945868648,38.72791126,241.07,240.91,49.01133664]
[1731945868848,38.72791126,241.07,240.95,4.15]
[1731945869026,42.87601126,241.07,240.95,4.15]
[1731945869925,42.87601126,241.07,240.96,4.1499]
[1731945870345,4.24177462,241.07,240.96,4.1499]
[1731945870642,38.63423664,241.08,240.96,20.0]
[1731945871136,0.09367462,241.07,240.96,4.1499]
[1731945871345,77.26847328,241.08,240.94,20.0]
[1731945871520,38.63423664,241.08,241.03,4.1487]
[1731945871726,38.63423664,241.12,241.06,4.35561724]
[1731945871920,38.63423664,241.08,241.06,0.20741724]
[1731945872650,38.63423664,241.1,241.06,0.20741724]
[1731945872958,38.63423664,241.08,241.06,0.20741724]
[1731945873835,38.63423664,241.1,241.06,0.20741724]
[1731945874232,38.63423664,241.08,241.06,0.20741724]
[1731945874529,38.63423664,241.12,241.06,4.35561724]
[1731945875756,38.63423664,241.12,241.06,10.57821724]
[1731945876061,10.3622,241.27,241.06,49.21245388]
[1731945876062,38.63423664,241.14,241.06,49.21245388]
[1731945876230,23.76486205,241.2,241.11,43.76486205]
[1731945876828,23.76486205,241.2,241.11,23.76486205]
[1731945877032,23.76486205,241.18,241.07,20.0]
[1731945877234,23.76486205,241.18,241.06,10.57821724]
[1731945877235,23.76486205,241.18,241.1,20.0]
[1731945877433,23.76486205,241.22,241.13,23.76486205]
[1731945877732,23.76486205,241.22,241.15,23.76486205]
[1731945877942,23.76486205,241.24,241.16,4.1466]
[1731945878358,23.76486205,241.26,241.19,23.76486205]
[1731945878645,30.1095,241.36,241.19,23.76486205]
[1731945878646,23.76486205,241.28,241.19,23.76486205]
[1731945878948,4.1432,241.36,241.21,23.76486205]
[1731945879147,23.76486205,241.28,241.19,23.76486205]
[1731945879457,23.76486205,241.28,241.2,20.0]
[1731945879662,23.76486205,241.3,241.21,23.76486205]
[1731945879859,23.76486205,241.3,241.22,4.1455]
[1731945880027,23.76486205,241.3,241.22,14.5094]
[1731945880232,38.58791674,241.29,241.22,14.5094]
[1731945880456,38.58791674,241.31,241.22,14.5094]
[1731945881833,38.58791674,241.31,241.23,38.58791674]
[1731945882370,38.58791674,241.31,241.22,14.5094]
[1731945882544,38.58791674,241.33,241.25,38.58791674]
[1731945882857,38.58791674,241.33,241.23,20.0]
[1731945883056,38.58791674,241.33,241.25,38.58791674]
[1731945883447,38.58791674,241.31,241.23,58.58791674]
[1731945883756,38.58791674,241.25,241.22,10.3639]
[1731945883960,38.58791674,241.23,241.14,4.1469]
[1731945884263,38.58791674,241.15,241.07,32.8723]
[1731945884450,38.58791674,241.13,241.07,4.1481]
[1731945884765,38.58791674,241.15,241.08,38.58791674]
[1731945885278,38.58791674,241.13,241.07,4.1481]
[1731945885439,38.58791674,241.13,241.07,14.5183]
[1731945885938,38.58791674,241.15,241.07,14.5183]
[1731945886136,0.09367462,241.24,241.1,38.58791674]
[1731945886361,38.58791674,241.19,241.1,38.58791674]
[1731945886564,38.58791674,241.19,241.07,14.5183]
[1731945886565,38.58791674,241.17,241.08,38.58791674]
[1731945886768,38.58791674,241.19,241.12,38.58791674]
[1731945886943,38.58791674,241.21,241.12,38.58791674]
[1731945887547,38.58791674,241.21,241.13,24.1471]
[1731945887763,38.58791674,241.23,241.14,38.58791674]
[1731945887946,0.09367462,241.24,241.18,38.58791674]
[1731945888342,0.09367462,241.24,241.19,20.0]
[1731945888565,0.09367462,241.24,241.22,38.58791674]
[1731945889168,0.09367462,241.24,241.21,20.0]
[1731945889364,0.09367462,241.24,241.19,20.0]
[1731945889538,0.09367462,241.24,241.2,42.73381674]
[1731945889745,0.09367462,241.24,241.2,4.1459]
[1731945889945,0.09367462,241.24,241.2,14.5107]
[1731945890354,0.09367462,241.24,241.2,53.09861674]
[1731945891566,0.09367462,241.24,241.2,14.5107]
[1731945891760,0.09367462,241.24,241.2,53.09861674]
[1731945892646,0.09367462,241.24,241.2,14.5107]
[1731945894459,0.09367462,241.24,241.2,48.95271674]
[1731945894766,0.09367462,241.24,241.22,38.58791674]
[1731945894944,0.09367462,241.24,241.2,48.95271674]
[1731945895147,0.09367462,241.24,241.21,20.0]
[1731945895847,0.09367462,241.24,241.23,20.0]
[1731945896547,0.09367462,241.24,241.23,24.1454]
[1731945897853,38.58791674,241.37,241.23,24.1454]
[1731945898174,38.58791674,241.37,241.29,38.58791674]
[1731945898551,38.58791674,241.37,241.3,4.1442]
[1731945899749,71.23401674,241.44,241.35,38.58791674]
[1731945899750,38.58791674,241.44,241.35,38.58791674]
[1731945899960,16.6558,241.5,241.37,38.58791674]
[1731945900251,23.72169861,241.43,241.34,23.72169861]
[1731945900653,23.72169861,241.45,241.36,23.72169861]
[1731945900851,0.09367462,241.44,241.34,23.72169861]
[1731945901076,23.72169861,241.41,241.32,23.72169861]
[1731945901778,23.72169861,241.41,241.33,4.1437]
[1731945902674,23.72169861,241.45,241.38,23.72169861]
[1731945902879,23.72169861,241.47,241.38,23.72169861]
[1731945903173,23.72169861,241.49,241.4,23.72169861]
[1731945903358,23.72169861,241.49,241.42,23.72169861]
[1731945903550,13.0192,241.58,241.44,23.72169861]
[1731945903551,23.72169861,241.51,241.44,23.72169861]
[1731945903750,23.72169861,241.51,241.42,23.72169861]
[1731945904165,23.72169861,241.51,241.35,4.1433]
[1731945904347,23.72169861,241.51,241.43,23.72169861]
[1731945904573,23.72169861,241.49,241.41,23.72169861]
[1731945904960,23.72169861,241.45,241.37,23.72169861]
[1731945905170,23.72169861,241.43,241.35,4.1433]
[1731945905352,23.72169861,241.41,241.35,4.1433]
[1731945905873,23.99604862,241.36,241.28,23.72169861]
[1731945906054,23.72169861,241.32,241.23,23.72169861]
[1731945906261,23.72169861,241.3,241.23,23.72169861]
[1731945906953,23.776884,241.36,241.26,23.72169861]
[1731945907160,23.72169861,241.36,241.29,23.72169861]
[1731945907383,23.72169861,241.34,241.25,23.72169861]
[1731945907562,23.72169861,241.32,241.25,23.72169861]
[1731945907755,23.72169861,241.32,241.26,4.1449]
[1731945907955,23.72169861,241.33,241.26,4.1449]
[1731945908173,4.1409,241.49,241.32,23.72169861]
[1731945908366,23.72169861,241.42,241.34,23.72169861]
[1731945908683,23.72169861,241.38,241.3,23.72169861]
[1731945908987,23.72169861,241.34,241.26,38.22879861]
[1731945909201,23.72169861,241.3,241.26,14.5071]
[1731945909784,23.72169861,241.3,241.26,10.3622]
[1731945909981,23.72169861,241.31,241.26,10.3622]
[1731945910784,23.72169861,241.35,241.27,23.72169861]
[1731945910966,0.5,241.43,241.27,23.72169861]
[1731945910967,23.72169861,241.34,241.27,23.72169861]
[1731945911377,23.72169861,241.34,241.26,34.08389861]
[1731945911568,23.72169861,241.34,241.26,23.72169861]
[1731945911983,0.5,241.45,241.29,23.72169861]
[1731945912176,23.72169861,241.39,241.31,23.72169861]
[1731945912690,23.72169861,241.37,241.29,23.72169861]
[1731945913196,27.86349861,241.44,241.22,0.5]
[1731945913197,23.72169861,241.42,241.34,23.72169861]
[1731945913368,23.72169861,241.4,241.32,23.72169861]
[1731945913566,23.72169861,241.38,241.3,23.72169861]
[1731945913892,23.72169861,241.38,241.31,4.144]
[1731945914473,23.72169861,241.4,241.32,23.72169861]
[1731945914674,23.776884,241.39,241.32,23.72169861]
[1731945914975,23.776884,241.37,241.31,4.144]
[1731945915171,23.72169861,241.36,241.31,4.144]
[1731945915378,23.87055862,241.35,241.28,23.72169861]
[1731945915589,23.87055862,241.35,241.14,31.5869]
[1731945915590,23.72169861,241.34,241.26,23.72169861]
[1731945915793,23.72169861,241.34,241.27,4.1447]
[1731945917070,23.72169861,241.32,241.27,4.1447]
[1731945917578,23.72169861,241.28,241.23,4.1454]
[1731945917777,23.72169861,241.24,241.15,23.72169861]